Cogmind - Beta 16 @@@ ROGUE MODE // 2026.01.13 @ 21:36:00 Player: phosphophyllite Result: Destroyed by L-41 Fighter with Axe Performance ------------- Evolutions (3) 1500 Regions Visited (5) 1000 Robots Destroyed (95) 475 Value Destroyed (2618) 2618 Prototype IDs (3) 60 Alien Tech Used (0) 0 Bonus (210) 210 TOTAL SCORE: 5863 Bonus ------- High Alert Combat Kills 150 Follower Combat Kills 60 Cogmind --------- Core Integrity 0/700 Matter 280/300 Energy 285/290 System Corruption 19% Temperature Cool (0) Movement Walking (196) Ox1 Location -7/Lower Caves Parts ------- > --- POWER (1) -------- Improved Deuterium Engine > --- PROPULSION (6) --- Armored Treads Aluminum Leg Aluminum Leg Makeshift Leg > --- UTILITY (4) ------ Large Storage Unit Improved Targeting Computer Advanced Targeting Computer Hardened Medium Armor Plating > --- WEAPON (2) ------- Mini Assault Cannon Makeshift Sword > --- INVENTORY (15) --- Light Nuclear Core Light Nuclear Core Improved Deuterium Engine Improved Deuterium Engine Improved Heat Sink Improved Heat Sink Small Storage Unit Makeshift Light Armor Plating Particle Gun Plasma Cannon Shotgun Flak Cannon Powered Hammer Powered Hammer Powered Hammer Peak State ------------ > --- POWER ------------ Improved Deuterium Engine > --- PROPULSION ------- Armored Treads Aluminum Leg Aluminum Leg Makeshift Leg > --- UTILITY ---------- Large Storage Unit Improved Targeting Computer Advanced Targeting Computer Hardened Medium Armor Plating > --- WEAPON ----------- Mini Assault Cannon Makeshift Sword > --- INVENTORY -------- Light Nuclear Core Light Nuclear Core Improved Deuterium Engine Improved Heat Sink Improved Heat Sink Small Storage Unit Makeshift Light Armor Plating Particle Gun Plasma Cannon Shotgun Flak Cannon Powered Hammer Powered Hammer Powered Hammer [Rating: 35] Favorites ----------- Power Improved Deuterium Engine Engine Improved Deuterium Engine Power Core Light Nuclear Core Propulsion Advanced Treads Treads Advanced Treads Leg Aluminum Leg Flight Unit Flight Unit Utility Improved Targeting Computer Storage Large Storage Unit Processor Improved Targeting Computer Protection Layered Light Armor Plating Weapon Field Laser Energy Gun Field Laser Energy Cannon Improved EM Pulse Cannon Ballistic Gun Light Assault Rifle Ballistic Cannon Advanced Assault Cannon Launcher Missile Launcher Impact Weapon Powered Hammer Slashing Weapon Makeshift Sword Build | -11 -10 -9 -8 -7 -7 ------- Run | Yrd Mat Mat Mat Fac Low Slots Evolved 6 | . . 2 2 2 . Power . | . . . . . . Propulsion 4 | . . 2 2 . . Utility 2 | . . . . 2 . Weapon . | . . . . . . Parts Attached 68 | 6 7 6 15 29 5 Power 9 | 1 1 . 3 4 . Engine 6 | 1 1 . 3 1 . Core 3 | . . . . 3 . Reactor . | . . . . . . Propulsion 26 | 2 3 3 7 7 4 Treads 8 | . . . 6 1 1 Leg 11 | 2 . . . 6 3 Wheel . | . . . . . . Hover . | . . . . . . Flight 7 | . 3 3 1 . . Utility 13 | 1 1 1 1 9 . Device . | . . . . . . Storage 2 | 1 . . 1 . . Processor 4 | . 1 1 . 2 . Hackware . | . . . . . . Protection 7 | . . . . 7 . Artifact . | . . . . . . Weapon 20 | 2 2 2 4 9 1 Energy Gun 10 | 2 . 2 2 4 . Energy Cannon 1 | . . . . 1 . Ballistic Gun 2 | . 2 . . . . Ballistic Cannon 2 | . . . . 2 . Launcher 2 | . . . 2 . . Special Weapon . | . . . . . . Impact Weapon 2 | . . . . 2 . Slashing Weapon 1 | . . . . . 1 Piercing Weapon . | . . . . . . Special Melee Weapon . | . . . . . . Unidentified Prototypes 3 | . . . 1 2 . Corrupted Parts 2 | . . . . 1 1 System Corruption 11 | . . . . 7 4 Parts Lost 32 | . 2 . 5 25 . Power 4 | . . . 1 3 . Propulsion 13 | . . . 2 11 . Utility 6 | . . . . 6 . Weapon 9 | . 2 . 2 5 . Highest Loss Streak 7 | . 2 . 2 7 . To Critical Strikes . | . . . . . . Average Backups 11 | 1 5 7 12 12 12 Power 2 | . . . . 2 2 Propulsion . | . 3 2 . . . Utility 5 | . . 3 7 7 3 Weapon 3 | . . 1 3 3 6 Tool/Special . | . . . . . . Unused Backups 21 | . 2 5 . 2 12 Power 4 | . . . . 1 3 Propulsion 2 | . 2 . . . . Utility 8 | . . 4 . 1 3 Weapon 7 | . . 1 . . 6 Tool/Special . | . . . . . . Average Slot Usage (%) 74 | . 91 97 86 68 67 Engine 5 | . 13 11 5 2 6 Core 1 | . . . . 3 . Treads 11 | . . . 43 6 3 Leg 7 | . 10 . . 8 11 Flight 3 | . 17 43 2 . . Storage 7 | . 14 11 9 7 7 Processor 10 | . 8 9 9 8 15 Protection 7 | . . . . 13 7 Energy Gun 8 | . 18 14 11 11 . Ballistic Cannon 2 | . . . . 2 6 Launcher 1 | . . . 5 . . Impact Weapon 1 | . . . . 1 4 Peak Build Rating 35 | 6 8 16 32 34 35 Average Rating 25 | 4 7 13 28 27 29 On Entrance 13 | . 6 6 16 26 24 Avg Prop Armor Cover (%) 7 | . . . 6 5 8 Naked Turns . | . . . . . . Heaviest Build 47 | 12 12 14 40 47 47 Greatest Support 130 | 20 20 16 130 86 40 Greatest Overweight (x) 15 | 1 1 . . 15 15 Average Overweight (x) 1 | . . . . 2 3 Largest Inventory Capacity 15 | 8 8 8 15 15 15 Average Capacity 14 | 6 8 8 14 15 15 Most Carried 15 | 4 8 8 15 15 15 Average Carried 11 | 2 5 7 12 12 12 Final Capacity 15 | 8 8 8 15 15 15 Final Carried 15 | 4 7 8 14 10 15 Class Distribution -------------------- 84% | Mutant 11% | Scavenger-Mutant Dominant Class ---------------- Mutant | -10/Materials Sprinter | -9/Materials Mutant | -8/Materials Mutant | -7/Factory Mutant | -7/Lower Caves Resources | -11 -10 -9 -8 -7 -7 ----------- Run | Yrd Mat Mat Mat Fac Low Matter Collected 1831 | 185 124 53 531 616 322 Remotely . | . . . . . . Salvage Created 2876 | . 335 53 962 1316 210 Parts 166 | . 22 2 77 55 10 Haulers Intercepted 4 | . . . 2 2 . Recyclers Shooed 3 | . . . 2 1 . Parts Field Recycled . | . . . . . . Retrieved Matter . | . . . . . . Parts Self-Destructed 9 | . . . . . 9 Prevented 2 | . . . . . 2 Parts Restored . | . . . . . . Kills | -11 -10 -9 -8 -7 -7 ------- Run | Yrd Mat Mat Mat Fac Low Combat Hostiles Destroyed 55 | . 5 1 24 21 4 Melee 5 | . . . . 1 4 Guns 24 | . 4 1 4 15 . Cannons 1 | . . . . 1 . AOE 21 | . 1 . 20 . . Classes Destroyed 15 | . 5 1 8 1 . Worker 11 | . . . 8 3 . Builder 11 | . . . 8 3 . Tunneler 1 | . 1 . . . . Hauler 4 | . . . 2 2 . Recycler 7 | . 2 . 4 1 . Mechanic 2 | . . . 1 1 . Operator 1 | . 1 . . . . Watcher 3 | . 2 . 1 . . Swarmer 11 | . 5 . 3 3 . Grunt 28 | . . . 14 11 3 Brawler 2 | . . . 1 . 1 Protector 2 | . . . 2 . . Sentry 8 | . . 1 3 4 . Hunter 1 | . . . 1 . . Programmer 3 | . . . . 3 . Best Kill Streak 17 | . 8 1 17 3 2 Combat Bots Only 10 | . 3 1 10 3 2 Max Kills in Single Turn 5 | . 1 1 5 2 1 Gunslinging 1 | . . . . 1 . Exploded 5 | . 1 . 5 . . Melee 1 | . . . . 1 1 Uniques/NPCs Destroyed . | . . . . . . Combat | -11 -10 -9 -8 -7 -7 -------- Run | Yrd Mat Mat Mat Fac Low Hostile Shots Fired 551 | . 28 6 103 394 20 Missed 154 | . 9 3 30 105 7 Hits 397 | . 19 3 73 289 13 Melee 3 | . . . . . 3 Projectile 394 | . 19 3 73 289 10 Critical Strikes 10 | . . . 5 4 1 Damage Taken 5499 | . 184 44 1236 3768 267 Core 933 | . 24 13 163 683 50 Absorbed by Shields . | . . . . . . Core Remaining (%) 89 | 100 90 96 70 . . Volleys Fired 157 | . 17 6 44 90 . Largest 2 | . 2 2 2 2 . Hottest 132 | . 80 126 126 132 . Shots Fired 270 | . 32 10 76 150 2 Gun 219 | . 32 10 40 137 . Cannon 15 | . . . . 13 2 Launcher 36 | . . . 36 . . Special . | . . . . . . Kinetic 11 | . 4 . . 5 2 Thermal 187 | . . 10 40 137 . Explosive 36 | . . . 36 . . Electromagnetic 36 | . 28 . . 8 . Robot Hit Streak 27 | . 3 6 13 27 . Robot Miss Streak 3 | . 3 2 2 2 1 Penetration Max . | . . . . . . Secondary Targets 3 | . . . 1 2 . Max Gunslinging Chain 1 | . . . 1 1 . Shots Hit Robots 204 | . 15 5 47 130 7 Core Hits 148 | . 11 2 86 46 3 Critical Kills 1 | . . . . . 1 Critical Parts Destroyed 1 | . . . . . 1 Critical Strikes 15 | . . 1 3 9 2 Burn 12 | . . 1 3 8 . Corrupt 1 | . . . . 1 . Smash 2 | . . . . . 2 Melee Attacks 29 | . . . . 14 15 Impact 26 | . . . . 14 12 Slashing 3 | . . . . . 3 Piercing . | . . . . . . Sneak Attacks 2 | . . . . 2 . Combat Hostiles . | . . . . . . Follow-up Attacks . | . . . . . . Damage Inflicted 7317 | . 238 84 4167 2568 260 Guns 2638 | . 199 84 479 1876 . Cannons 200 | . . . . 200 . Explosions 3727 | . 39 . 3688 . . Melee 752 | . . . . 492 260 Ramming . | . . . . . . Kinetic 95 | . 17 . . 78 . Thermal 2478 | . 39 84 479 1876 . Explosive 3688 | . . . 3688 . . Electromagnetic 304 | . 182 . . 122 . Impact 752 | . . . . 492 260 Slashing . | . . . . . . Piercing . | . . . . . . Highest Corruption 19 | . . . . 15 19 Average Corruption 9 | . . . . 3 16 Corruption Purged . | . . . . . . Corruption Blocked . | . . . . . . Effects 79 | . . . . 24 55 Message Errors 28 | . . . . 8 20 Matter Fused 24 | . . . . 8 16 Heat Flow Errors 7 | . . . . 3 4 Energy Discharges 3 | . . . . . 3 Parts Fused 1 | . . . . 1 . Data Loss (minor) 8 | . . . . 2 6 Data Loss (major) 3 | . . . . 1 2 Misfires 3 | . . . . 1 2 Alerts 2 | . . . . . 2 Overload Shots . | . . . . . . Overflow Damage 245 | . . . 147 63 35 Projectiles . | . . . . . . Explosions 147 | . . . 147 . . Melee 98 | . . . . 63 35 Knockbacks 4 | . . . . 4 . Impact 4 | . . . . 4 . Kinetic . | . . . . . . Secondary . | . . . . . . Self-Inflicted Damage 166 | . 20 . 146 . . Shots 8 | . 1 . 7 . . Rammed . | . . . . . . Targets Rammed . | . . . . . . Kicked . | . . . . . . Crushed . | . . . . . . Highest Temperature 595 | . 108 253 201 595 241 Average Temperature 157 | . 28 118 52 198 101 Received Heat Transfer 1767 | . . 9 603 1047 108 Effects 39 | . . 2 . 37 . Shutdowns 8 | . . . . 8 . Energy Bleed 6 | . . . . 6 . Interference 10 | . . 2 . 8 . Matter Decay 6 | . . . . 6 . Short Circuit 1 | . . . . 1 . Damage (minor) 6 | . . . . 6 . Damage (core) 2 | . . . . 2 . Siege Activations . | . . . . . . Martial Activations . | . . . . . . Shielding Activations . | . . . . . . Robots Disrupted . | . . . . . . Combat Hostiles . | . . . . . . Robots Corrupted 3 | . 1 . . 2 . Combat Hostiles 1 | . . . . 1 . Parts Fried 8 | . 3 . . 4 1 Impact Corruptions 6 | . . . . 5 1 Robots Melted 3 | . . . . 3 . Combat Hostiles 3 | . . . . 3 . Parts Melted 21 | . 1 1 5 14 . Heat Transferred 6192 | . 50 259 1258 4625 . Parts Sabotaged . | . . . . . . Parts Stolen . | . . . . . . Parts Stripped . | . . . . . . Power Chain Reactions 1 | . 1 . . . . Alert | -11 -10 -9 -8 -7 -7 ------- Run | Yrd Mat Mat Mat Fac Low Maximum Alert Level 3 | . . . 3 1 . Low Security (%) 36 | 100 100 100 57 6 . Level 1 55 | . . . 10 93 . Level 2 2 | . . . 9 . . Level 3 5 | . . . 22 . . Level 4 . | . . . . . . Level 5 . | . . . . . . High Security . | . . . . . . Max Security . | . . . . . . Peak Influence 760 | . 136 33 760 345 . Initial 317 | . . 33 4 317 . Average 227 | . 64 14 267 267 . Influence Increases 2077 | . 193 31 1003 652 198 Destroy 0b10 Robot/C 1120 | . 100 20 440 420 140 Destroy 0b10 Robot/NC 210 | . 30 . 130 50 . Destroy Leader 244 | . 14 10 96 104 20 Allied During Kill 8 | . . . . . 8 Disable Machine 30 | . . . 30 . . Anti-Garrison Action 150 | . . . 150 . . Destroy Structure 135 | . 4 1 127 3 . Lose Combat Pursuer 180 | . 45 . 30 75 30 Influence Decreases 2077 | . 112 101 317 1168 379 Entered New Map 503 | . . 48 7 380 68 Time Decay 1264 | . 92 53 270 538 311 Lost Part 310 | . 20 . 40 250 . Squads Dispatched 12 | . . . 5 7 . Investigation . | . . . . . . Extermination 2 | . . . . 2 . Reinforcement 3 | . . . 2 1 . Assault 2 | . . . 2 . . Garrison 5 | . . . 1 4 . Intercept . | . . . . . . Searches Triggered . | . . . . . . Construction Impeded 3 | . . . 2 1 . Haulers Reinforced . | . . . . . . Active Scanning Responses . | . . . . . . Cargo Convoy Interrupts . | . . . . . . Stealth | -11 -10 -9 -8 -7 -7 --------- Run | Yrd Mat Mat Mat Fac Low Distress Signals 2 | . 1 . 1 . . Communications Jammed . | . . . . . . Distress Signals . | . . . . . . Times Spotted 78 | . 11 1 30 25 11 Peak Tracking Total 8 | . 5 1 8 3 4 Tactical Retreats 9 | . 2 . 2 4 1 Traps | -11 -10 -9 -8 -7 -7 ------- Run | Yrd Mat Mat Mat Fac Low Traps Triggered 2 | . 2 . . . . Indirectly . | . . . . . . Trap Hack Attempts . | . . . . . . Triggered . | . . . . . . Disarmed . | . . . . . . Reprogrammed . | . . . . . . Reused . | . . . . . . Traps Extracted . | . . . . . . Installed . | . . . . . . Triggered . | . . . . . . Machines | -11 -10 -9 -8 -7 -7 ---------- Run | Yrd Mat Mat Mat Fac Low Machines Disabled 3 | . . . 3 . . Max in Single Turn 2 | . . . 2 . . Garrison Access 1 | . . . 1 . . Machines Repaired . | . . . . . . Machines Dismantled . | . . . . . . Machines Sabotaged . | . . . . . . Overloaded Fab Kills . | . . . . . . Hacking | -11 -10 -9 -8 -7 -7 --------- Run | Yrd Mat Mat Mat Fac Low Machines Accessed . | . . . . . . Terminals . | . . . . . . Fabricators . | . . . . . . Repair Stations . | . . . . . . Recycling Units . | . . . . . . Scanalyzers . | . . . . . . Garrison Access . | . . . . . . Total Hacks . | . . . . . . Successful . | . . . . . . Failed . | . . . . . . Catastrophic . | . . . . . . Database Lockouts . | . . . . . . Manual . | . . . . . . Terminals . | . . . . . . Fabricators . | . . . . . . Repair Stations . | . . . . . . Recycling Units . | . . . . . . Scanalyzers . | . . . . . . Garrison Access . | . . . . . . Terminal Hacks . | . . . . . . Fabricator Hacks . | . . . . . . Repair Station Hacks . | . . . . . . Recycling Unit Hacks . | . . . . . . Scanalyzer . | . . . . . . Garrison Access Hacks . | . . . . . . Unauthorized Hacks . | . . . . . . Terminals . | . . . . . . Fabricators . | . . . . . . Repair Stations . | . . . . . . Recycling Units . | . . . . . . Scanalyzers . | . . . . . . Garrison Access . | . . . . . . Data Cores Recovered 1 | . 1 . . . . Used . | . . . . . . Hacking Detections . | . . . . . . Full Trace Events . | . . . . . . Feedback Events . | . . . . . . Feedback Blocked . | . . . . . . Robot Schematics Acquired . | . . . . . . Robots Built . | . . . . . . Authchips . | . . . . . . Time . | . . . . . . Total Robot Build Rating . | . . . . . . Part Schematics Acquired . | . . . . . . Parts Built . | . . . . . . Authchips . | . . . . . . Time . | . . . . . . Total Part Build Rating . | . . . . . . Part Studies Acquired . | . . . . . . Parts Repaired . | . . . . . . Time . | . . . . . . Parts Recycled . | . . . . . . Recycled Matter . | . . . . . . Retrieved Matter . | . . . . . . Retrieved Components . | . . . . . . Parts Scanalyzed . | . . . . . . Part Schematics Acquired . | . . . . . . Parts Damaged . | . . . . . . Bothacking | -11 -10 -9 -8 -7 -7 ------------ Run | Yrd Mat Mat Mat Fac Low Used RIF Installer . | . . . . . . Robots Hacked . | . . . . . . Non-combat . | . . . . . . Combat . | . . . . . . Robot Hacks Applied . | . . . . . . Relay Couplers Released 5 | . . . 2 3 . Machine Destruction 2 | . . . 2 . . Programmers 3 | . . . . 3 . Fabnet Peak Effective % . | . . . . . . Robots Rewired . | . . . . . . Allies Hacked . | . . . . . . Hacks Repelled . | . . . . . . Allies | -11 -10 -9 -8 -7 -7 -------- Run | Yrd Mat Mat Mat Fac Low Total Allies 1 | . . . . . 1 Largest Group 1 | . . . . . 1 Highest-Rated Group 180 | . . . . . 180 Highest-Rated Ally 180 | . . . . . 180 Total Orders . | . . . . . . Ally Attacks 12 | . . . . . 12 Total Damage 148 | . . . . . 148 Kills 3 | . . . . . 3 Allies Corrupted . | . . . . . . Allies Melted . | . . . . . . Intel | -11 -10 -9 -8 -7 -7 ------- Run | Yrd Mat Mat Mat Fac Low Active Infowar (turns) 142 | . 142 . . . . Optics 142 | . 142 . . . . Robot Analysis Total . | . . . . . . Derelict Logs Recovered 1 | . . . . . 1 Drone Launches . | . . . . . . Drone Recoveries . | . . . . . . Exploration | -11 -10 -9 -8 -7 -7 ------------- Run | Yrd Mat Mat Mat Fac Low Turns Passed 3901 | 72 230 162 711 1537 1189 Spaces Moved 1568 | 53 125 330 277 430 353 Core 105 | 6 . . . 36 63 Treads 482 | . . . 260 195 27 Legs 561 | 47 52 . . 199 263 Wheels . | . . . . . . Hover . | . . . . . . Flight 420 | . 73 330 17 . . Fastest Speed 24 | 50 37 29 24 120 196 Average Speed 182 | 113 116 29 137 247 315 Slowest Speed 800 | 120 120 31 148 800 800 Overloaded Moves . | . . . . . . Propulsion Burnouts . | . . . . . . Robots Hopped . | . . . . . . Potential Cave-ins . | . . . . . . Cave-ins Triggered . | . . . . . . Exploration Rate (%) 20 | 4 29 18 24 6 43 Regions Visited 5 Branch Regions 1 Pre-discovered Areas . | . . . . . . Known Exits Taken . | . . . . . . Unknown Exits Taken 5 | 1 1 1 1 1 . Scrap Searched 1 | . . . . . 1 Spaces Dug 19 | . . . 19 . . Terrain Destroyed 263 | . 4 . 258 1 . Melee . | . . . . . . Projectile 1 | . . . . 1 . AOE 262 | . 4 . 258 . . Terrain Rammed . | . . . . . . Walls Destroyed . | . . . . . . Machines Disabled . | . . . . . . Actions | -11 -10 -9 -8 -7 -7 --------- Run | Yrd Mat Mat Mat Fac Low Total 2285 | 62 176 388 520 731 408 Wait 350 | . 8 19 165 141 17 Move 1563 | 52 124 329 276 429 353 Hop . | . . . . . . Pick Up 63 | 4 8 14 9 17 11 Fast Attach 35 | 6 6 2 9 7 5 Attach 31 | . 2 3 4 19 3 Detach 2 | . 1 . . 1 . Swap 19 | . 4 2 5 8 . Drop 36 | . 6 13 8 5 4 Fire 157 | . 17 6 44 90 . Melee 29 | . . . . 14 15 Ram . | . . . . . . Kick . | . . . . . . Crush . | . . . . . . Escape Stasis . | . . . . . . Rewire . | . . . . . . Trap . | . . . . . . Miscellaneous . | . . . . . . Route ------- -11/Scrapyard -10/Materials -9/Materials -8/Materials -7/Factory -7/Lower Caves (discovered 1 exit: [*Fac]) History --------- Turn | Location | Event 16 | -11/Scrapyard | Discovered new exit (range 15) 73 | -11/Scrapyard | Entered Materials 292 | -10/Materials | Discovered new exit (range 4) 303 | -10/Materials | Entered another Materials area 303 | -9/Materials | Evolved 2 slots: Propulsion x2 443 | -9/Materials | Discovered new exit (range 4) 465 | -9/Materials | Entered another Materials area 465 | -8/Materials | Evolved 2 slots: Propulsion x2 737 | -8/Materials | Build established: Mutant 866 | -8/Materials | Garrison activated, responded to threat 924 | -8/Materials | Destroyed 10 combat bots 973 | -8/Materials | Discovered new exit (range 14) 1027 | -8/Materials | Destroyed 9 combat bots 1176 | -8/Materials | Entered Factory 1176 | -7/Factory | Evolved 2 slots: Utility x2 1313 | -7/Factory | Garrison activated, responded to threat 1707 | -7/Factory | Garrison activated, responded to threat 1786 | -7/Factory | Lost 3 parts (1p1n1w) 2047 | -7/Factory | Build established: Scavenger-Mutant 2147 | -7/Factory | Lost 3 parts (2n1w) 2156 | -7/Factory | Discovered new exit (range 15) 2286 | -7/Factory | Core integrity fell below 50% 2295 | -7/Factory | Core integrity fell below 20% 2339 | -7/Factory | Lost 7 parts (1p2n1u3w) 2496 | -7/Factory | Build established: Mutant 2504 | -7/Factory | Lost 5 parts (1p1n3u) 2640 | -7/Factory | System corruption reached 10% 2713 | -7/Factory | Entered Lower Caves 2723 | -7/Lower Caves | 7V-RTL showed up to help 2725 | -7/Lower Caves | 7V-RTL revealed a hidden path 3185 | -7/Lower Caves | Found DCF Scrap (15 items) 3569 | -7/Lower Caves | Learned Factory garrison access intel 3902 | -7/Lower Caves | Destroyed by L-41 Fighter with Axe Last Messages --------------- Data stored: Factory garrison access intel. 03573_ System corrupted: Substantial component data lost. 03594_ IK3DX|#N/E8P6HGNAHK%9DEOBPMRA 1GMI3Y0EMU 03611_ 2MNZKYBLPGELZU%F 7KISSU>/JQ9IKXYE9|RWET,QN=HTWB= 03872_ &3TE#CZE,/#